fUSD/lending_fUSD_20250302
["ID","MTS","AMOUNT","RATE_DAILY","PERIOD"]
[355127412,1740930652648,-3618.14116607,0.000259,9]
[355127413,1740930652665,-1208.56074244,0.00024578,10]
[355127414,1740930652675,-364.93925756,0.000259,9]
[355127415,1740930652687,-1616.91957637,0.000259,9]
[355127416,1740930652697,-574.11793242,0.0002599,2]
[355127417,1740930652708,-2000.0,0.00025997,4]
[355127418,1740930652718,-500.0,0.00026,120]
[355127419,1740930652728,-4433.65,0.00026,2]
[355127420,1740930652737,-169.793464,0.00026027,2]
[355127421,1740930652747,-194.188231,0.00026027,2]
[355127422,1740930652757,-500.0,0.00026027,2]
[355127423,1740930652769,-500.0,0.00026027,2]
[355127424,1740930652779,-500.0,0.00026027,2]
[355127425,1740930652789,-512.33,0.00026027,2]
[355127426,1740930652799,-500.0,0.00026027,2]
[355127427,1740930652808,-500.0,0.00026027,2]
[355127428,1740930652818,-1012.05,0.00026027,2]
[355127429,1740930652828,-500.0,0.00026027,2]
[355127430,1740930652838,-441.44702593,0.00026027,2]
[355127431,1740930652848,-500.0,0.00026027,2]
[355127432,1740930652858,-500.0,0.00026027,2]
[355127433,1740930652869,-313.41,0.00026027,2]
[355127434,1740930652879,-500.0,0.00026027,2]
[355127435,1740930652889,-500.0,0.00026027,2]
[355127436,1740930652899,-426.39,0.00026027,2]
[355127437,1740930652909,-500.0,0.00026027,2]
[355127438,1740930652919,-849.78,0.00026027,2]
[355127439,1740930652929,-500.0,0.00026027,2]
[355127440,1740930652939,-500.0,0.00026027,2]
[355127441,1740930652949,-500.0,0.00026027,2]
[355127442,1740930652959,-500.0,0.00026027,2]
[355127443,1740930652968,-500.0,0.00026027,2]
[355127444,1740930652978,-500.0,0.00026027,2]
[355127445,1740930652987,-500.0,0.00026027,2]
[355127446,1740930652997,-500.0,0.00026027,2]
[355127447,1740930653007,-153.27,0.00026027,2]
[355127448,1740930653019,-500.0,0.00026027,2]
[355127449,1740930653028,-333.18,0.00026027,2]
[355127450,1740930653038,-500.0,0.00026027,2]
[355127451,1740930653048,-547.83,0.00026027,2]
[355127452,1740930653059,-903.02,0.00026027,2]
[355127453,1740930653069,-1399.85,0.00026027,2]
[355127454,1740930653080,-500.0,0.00026027,2]
[355127455,1740930653090,-2759.04,0.00026027,2]
[355127456,1740930653099,-908.68,0.00026027,2]
[355127457,1740930653109,-1649.39,0.00026027,2]
[355127458,1740930653119,-893.1,0.00026027,2]
[355127459,1740930653135,-1036.89,0.00026027,2]
[355127460,1740930653146,-777.5,0.00026027,2]
[355127461,1740930653156,-1965.61,0.00026027,2]
[355127462,1740930653167,-500.0,0.00026027,2]
[355127463,1740930653178,-763.07,0.00026027,2]
[355127464,1740930653187,-1418.55,0.00026027,2]
[355127465,1740930653197,-267.67504381,0.00026027,2]
[355127466,1740930653210,-232.32495619,0.00026027,2]
[355127467,1740930653234,-500.0,0.00026027,2]
[355127468,1740930653244,-1316.21,0.00026027,2]
[355127469,1740930653255,-500.0,0.00026027,2]
[355127470,1740930653265,-500.0,0.00026027,2]
[355127471,1740930653303,-1341.26504385,0.00026027,2]
[355127472,1740930653317,-89.65495615,0.00026027,2]
[355127473,1740930653328,-1251.14054473,0.00026027,2]
[355127474,1740930653341,-104.03945527,0.00026027,2]
[355127475,1740930653352,-500.0,0.00026027,2]
[355127476,1740930653362,-500.0,0.00026027,2]
[355127477,1740930653373,-500.0,0.00026027,2]
[355127478,1740930653383,-608.56,0.00026027,2]
[355127479,1740930653394,-500.0,0.00026027,2]
[355127480,1740930653405,-500.0,0.00026027,2]
[355127481,1740930653415,-500.0,0.00026027,2]
[355127482,1740930653426,-500.0,0.00026027,2]
[355127483,1740930653437,-1232.63,0.00026027,2]
[355127484,1740930653447,-289.5,0.00026027,2]
[355127485,1740930653458,-528.98,0.00026027,2]
[355127486,1740930653468,-500.0,0.00026027,2]
[355127487,1740930653478,-500.0,0.00026027,2]
[355127488,1740930653489,-823.0,0.00026027,2]
[355127489,1740930653499,-831.23,0.00026027,2]
[355127490,1740930653509,-580.87,0.00026027,2]
[355127491,1740930653523,-603.63,0.00026027,2]
[355127492,1740930653533,-500.0,0.00026027,2]
[355127493,1740930653542,-1637.62,0.00026027,2]
[355127494,1740930653552,-1394.88,0.00026027,2]
[355127495,1740930653564,-4299.86,0.00026027,2]
[355127496,1740930653574,-2839.17,0.00026027,2]
[355127497,1740930653583,-500.0,0.00026027,2]
[355127498,1740930653593,-766.74,0.00026027,2]
[355127499,1740930653603,-749.36,0.00026027,2]
[355127500,1740930653615,-910.07,0.00026027,2]
[355127501,1740930653625,-500.0,0.00026027,2]
[355127502,1740930653636,-500.0,0.00026027,2]
[355127503,1740930653646,-500.0,0.00026027,2]
[355127504,1740930653656,-500.0,0.00026027,2]
[355127505,1740930653666,-500.0,0.00026027,2]
[355127506,1740930653676,-626.89,0.00026027,2]
[355127507,1740930653822,-1121.7,0.00026027,2]
[355127508,1740930653833,-516.14,0.00026027,2]
[355127509,1740930653843,-500.0,0.00026027,2]
[355127510,1740930653852,-1622.86,0.00026027,2]
[355127511,1740930653863,-1793.0,0.00026027,2]
[355127512,1740930653873,-1560.4,0.00026027,2]
[355127513,1740930653884,-500.0,0.00026027,2]
[355127514,1740930653894,-500.0,0.00026027,2]
[355127515,1740930653905,-500.0,0.00026027,2]
[355127516,1740930653915,-618.43,0.00026027,2]
[355127517,1740930653925,-500.0,0.00026027,2]
[355127518,1740930653935,-500.0,0.00026027,2]
[355127519,1740930653945,-500.0,0.00026027,2]
[355127520,1740930653955,-760.98,0.00026027,2]
[355127521,1740930653964,-500.0,0.00026027,2]
[355127522,1740930653974,-500.0,0.00026027,2]
[355127523,1740930653985,-889.47,0.00026027,2]
[355127524,1740930653994,-733.37,0.00026027,2]
[355127525,1740930654004,-500.0,0.00026027,2]
[355127526,1740930654014,-806.07,0.00026027,2]
[355127527,1740930654029,-2443.66,0.00026027,2]
[355127528,1740930654039,-500.0,0.00026027,2]
[355127529,1740930654049,-3279.81,0.00026027,2]
[355127530,1740930654058,-1526.61,0.00026027,2]
[355127531,1740930654068,-1347.2,0.00026027,2]
[355127532,1740930654078,-727.44,0.00026027,2]
[355127533,1740930654088,-500.0,0.00026027,2]
[355127534,1740930654098,-987.22,0.000263,2]
[355127535,1740930654107,-169.793464,0.00026301,2]
[355127536,1740930654117,-194.188231,0.00026301,2]
[355127537,1740930654127,-500.0,0.00026301,2]
[355127538,1740930654137,-500.0,0.00026301,2]
[355127539,1740930654147,-500.0,0.00026301,2]
[355127540,1740930654157,-500.0,0.00026301,2]
[355127541,1740930654166,-500.0,0.00026301,2]
[355127542,1740930654176,-1012.05,0.00026301,2]
[355127543,1740930654187,-346.62,0.00026301,2]
[355127544,1740930654198,-291.57,0.00026301,2]
[355127545,1740930654236,-432.26,0.00026301,2]
[355127546,1740930654247,-500.0,0.00026301,2]
[355127547,1740930654257,-454.71,0.00026301,2]
[355127548,1740930654271,-500.0,0.00026301,2]
[355127549,1740930654282,-849.78,0.00026301,2]
[355127550,1740930654292,-232.04,0.00026301,2]
[355127551,1740930654302,-500.0,0.00026301,2]
[355127552,1740930654312,-500.0,0.00026301,2]
[355127553,1740930654322,-500.0,0.00026301,2]
[355127554,1740930654332,-240.01,0.00026301,2]
[355127555,1740930654342,-293.3,0.00026301,2]
[355127556,1740930654352,-500.0,0.00026301,2]
[355127557,1740930654363,-500.0,0.00026301,2]
[355127558,1740930654373,-255.06,0.00026301,2]
[355127559,1740930654383,-500.0,0.00026301,2]
[355127560,1740930654394,-151.0,0.00026301,7]
[355127561,1740930654405,-903.02,0.00026301,2]
[355127562,1740930654416,-1399.85,0.00026301,2]
[355127563,1740930654428,-311.89,0.00026301,2]
[355127564,1740930654439,-2759.04,0.00026301,2]
[355127565,1740930654449,-908.68,0.00026301,2]
[355127566,1740930654459,-1649.39,0.00026301,2]
[355127567,1740930654469,-893.1,0.00026301,2]
[355127568,1740930654479,-1036.89,0.00026301,2]
[355127569,1740930654491,-777.5,0.00026301,2]
[355127570,1740930654501,-1965.61,0.00026301,2]
[355127571,1740930654511,-500.0,0.00026301,2]
[355127572,1740930654533,-763.07,0.00026301,2]
[355127573,1740930654543,-1418.55,0.00026301,2]
[355127574,1740930654553,-440.62,0.00026301,2]
[355127575,1740930654563,-500.0,0.00026301,2]
[355127576,1740930654574,-1316.21,0.00026301,2]
[355127577,1740930654584,-500.0,0.00026301,2]
[355127578,1740930654595,-500.0,0.00026301,2]
[355127579,1740930654605,-1430.92,0.00026301,2]
[355127580,1740930654616,-1355.18,0.00026301,2]
[355127581,1740930654626,-500.0,0.00026301,2]
[355127582,1740930654637,-500.0,0.00026301,2]
[355127583,1740930654646,-500.0,0.00026301,2]
[355127584,1740930654656,-500.0,0.00026301,2]
[355127585,1740930654665,-500.0,0.00026301,2]
[355127586,1740930654675,-586.9,0.00026301,2]
[355127587,1740930654686,-500.0,0.00026301,2]
[355127588,1740930654696,-1232.63,0.00026301,2]
[355127589,1740930654706,-528.98,0.00026301,2]
[355127590,1740930654715,-500.0,0.00026301,2]
[355127591,1740930654725,-500.0,0.00026301,2]
[355127592,1740930654736,-823.0,0.00026301,2]
[355127593,1740930654747,-831.23,0.00026301,2]
[355127594,1740930654758,-580.87,0.00026301,2]
[355127595,1740930654774,-603.63,0.00026301,2]
[355127596,1740930654784,-500.0,0.00026301,2]
[355127597,1740930654794,-1637.62,0.00026301,2]
[355127598,1740930654806,-1394.88,0.00026301,2]
[355127599,1740930654817,-3077.33905782,0.00026301,2]
[355127600,1740930654989,-615.4,0.00026301,2]
[355127601,1740930655002,-607.12094218,0.00026301,2]
[355127602,1740930655012,-2839.17,0.00026301,2]
[355127603,1740930655026,-500.0,0.00026301,2]
[355127604,1740930655036,-766.74,0.00026301,2]
[355127605,1740930655046,-749.36,0.00026301,2]
[355127606,1740930655056,-910.07,0.00026301,2]
[355127607,1740930655066,-500.0,0.00026301,2]
[355127608,1740930655076,-500.0,0.00026301,2]
[355127609,1740930655086,-500.0,0.00026301,2]
[355127610,1740930655096,-500.0,0.00026301,2]
[355127611,1740930655106,-500.0,0.00026301,2]
[355127612,1740930655115,-1121.7,0.00026301,2]
[355127613,1740930655125,-516.14,0.00026301,2]
[355127614,1740930655134,-500.0,0.00026301,2]
[355127615,1740930655144,-928.63854013,0.00026301,2]
[355127616,1740930655161,-500.0,0.00024657,2]
[355127617,1740930655170,-694.22145987,0.00026301,2]
[355127618,1740930655180,-1510.36818071,0.00026301,2]
[355127619,1740930655191,-282.63181929,0.00026301,2]
[355127620,1740930655201,-1419.98235472,0.00026301,2]
[355127621,1740930655214,-140.41764528,0.00026301,2]
[355127622,1740930655224,-194.78336944,0.00026301,2]
[355127623,1740930655237,-300.75060262,0.00026301,2]
[355127624,1740930655466,-500.0,0.00024657,2]
[355127625,1740930655476,-500.0,0.00024657,2]
[355127626,1740930655486,-500.0,0.00024657,2]
[355127627,1740930655500,-545.24,0.00024931,2]
[355127628,1740930655510,-464.89,0.00024931,2]
[355127629,1740930655523,-195.81,0.00024931,2]
[355127630,1740930655533,-4.46602794,0.00026301,2]
[355127631,1740930655544,-500.0,0.00026301,2]
[355127632,1740930655554,-500.0,0.00026301,2]
[355127633,1740930655564,-618.43,0.00026301,2]
[355127634,1740930655574,-500.0,0.00026301,2]
[355127635,1740930655584,-500.0,0.00026301,2]
[355127636,1740930655594,-500.0,0.00026301,2]
[355127637,1740930655604,-760.98,0.00026301,2]
[355127638,1740930655614,-500.0,0.00026301,2]
[355127639,1740930655624,-539.73059045,0.00026301,2]
[355127640,1740930655634,-889.47,0.00026301,2]
[355127641,1740930655644,-733.37,0.00026301,2]
[355127642,1740930655655,-500.0,0.00026301,2]
[355127643,1740930655665,-806.07,0.00026301,2]
[355127644,1740930655674,-2443.66,0.00026301,2]
[355127645,1740930655684,-500.0,0.00026301,2]
[355127646,1740930655694,-151.0,0.00026301,7]
[355127647,1740930655705,-3279.81,0.00026301,2]
[355127648,1740930655714,-1526.61,0.00026301,2]
[355127649,1740930655725,-1347.2,0.00026301,2]
[355127650,1740930655736,-727.44,0.00026301,2]
[355127651,1740930655746,-500.0,0.00026301,2]
[355127652,1740930655756,-1000.0,0.00026406,2]
[355127653,1740930655767,-6425.9934179,0.00026494,2]
[355127654,1740930655781,-1980.94989603,0.00026538,2]
[355127655,1740930655791,-169.793464,0.00026575,2]
[355127656,1740930655800,-194.188231,0.00026575,2]
[355127657,1740930655811,-500.0,0.00026575,2]
[355127658,1740930655825,-500.0,0.00026575,2]
[355127659,1740930655834,-500.0,0.00026575,2]
[355127660,1740930655844,-500.0,0.00026575,2]
[355127661,1740930655854,-500.0,0.00026575,2]
[355127662,1740930655864,-1012.05,0.00026575,2]
[355127663,1740930655874,-560.26,0.00026575,2]
[355127664,1740930655884,-469.83,0.00026575,2]
[355127665,1740930655894,-849.78,0.00026575,2]
[355127666,1740930655903,-500.0,0.00026575,2]
[355127667,1740930655912,-500.0,0.00026575,2]
[355127668,1740930655923,-202.42,0.00026575,2]
[355127669,1740930655932,-500.0,0.00026575,2]
[355127670,1740930655941,-575.77,0.00026575,2]
[355127671,1740930655951,-500.0,0.00026575,2]
[355127672,1740930655962,-1399.85,0.00026575,2]
[355127673,1740930655971,-1249.66054479,0.00026575,2]
[355127674,1740930655987,-1509.37945521,0.00026575,2]
[355127675,1740930655997,-908.68,0.00026575,2]
[355127676,1740930656006,-247.16818146,0.00026575,2]
[355127677,1740930656022,-1402.22181854,0.00026575,2]
[355127678,1740930656032,-893.1,0.00026575,2]
[355127679,1740930656043,-1036.89,0.00026575,2]
[355127680,1740930656053,-777.5,0.00026575,2]
[355127681,1740930656063,-1965.61,0.00026575,2]
[355127682,1740930656073,-500.0,0.00026575,2]
[355127683,1740930656082,-763.07,0.00026575,2]
[355127684,1740930656094,-1418.55,0.00026575,2]
[355127685,1740930656104,-500.0,0.00026575,2]
[355127686,1740930656113,-1316.21,0.00026575,2]
[355127687,1740930656125,-500.0,0.00026575,2]
[355127688,1740930656135,-316.90117997,0.00026575,2]
[355127689,1740930657301,-183.09882003,0.00026575,2]
[355127690,1740930657311,-1430.92,0.00026575,2]
[355127691,1740930657321,-1355.18,0.00026575,2]
[355127692,1740930657331,-500.0,0.00026575,2]
[355127693,1740930657340,-500.0,0.00026575,2]
[355127694,1740930657350,-500.0,0.00026575,2]
[355127695,1740930657360,-583.68,0.00026575,2]
[355127696,1740930657369,-500.0,0.00026575,2]
[355127697,1740930657379,-500.0,0.00026575,2]
[355127698,1740930657388,-1232.63,0.00026575,2]
[355127699,1740930657398,-528.98,0.00026575,2]
[355127700,1740930657407,-500.0,0.00026575,2]
[355127701,1740930657417,-500.0,0.00026575,2]
[355127702,1740930657426,-823.0,0.00026575,2]
[355127703,1740930657436,-831.23,0.00026575,2]
[355127704,1740930657445,-580.87,0.00026575,2]
[355127705,1740930657455,-603.63,0.00026575,2]
[355127706,1740930657464,-500.0,0.00026575,2]
[355127707,1740930657474,-1637.62,0.00026575,2]
[355127708,1740930657484,-1394.88,0.00026575,2]
[355127709,1740930657496,-4299.86,0.00026575,2]
[355127710,1740930657508,-2839.17,0.00026575,2]
[355127711,1740930657518,-500.0,0.00026575,2]
[355127712,1740930657531,-766.74,0.00026575,2]
[355127713,1740930657543,-749.36,0.00026575,2]
[355127714,1740930657553,-910.07,0.00026575,2]
[355127715,1740930657563,-500.0,0.00026575,2]
[355127716,1740930657573,-500.0,0.00026575,2]
[355127717,1740930657583,-460.16248627,0.00026575,2]
[355127718,1740930657592,-500.0,0.00026575,2]
[355127719,1740930657602,-500.0,0.00026575,2]
[355127720,1740930657612,-1121.7,0.00026575,2]
[355127721,1740930657622,-516.14,0.00026575,2]
[355127722,1740930657632,-500.0,0.00026575,2]
[355127723,1740930657642,-1622.86,0.00026575,2]
[355127724,1740930657652,-1793.0,0.00026575,2]
[355127725,1740930657661,-1560.4,0.00026575,2]
[355127726,1740930657671,-500.0,0.00026575,2]
[355127727,1740930657680,-508.27,0.00026575,2]
[355127728,1740930657691,-500.0,0.00026575,2]
[355127729,1740930657700,-618.43,0.00026575,2]
[355127730,1740930657710,-500.0,0.00026575,2]
[355127731,1740930657720,-500.0,0.00026575,2]
[355127732,1740930657730,-500.0,0.00026575,2]
[355127733,1740930657740,-760.98,0.00026575,2]
[355127734,1740930657750,-500.0,0.00026575,2]
[355127735,1740930657761,-889.47,0.00026575,2]
[355127736,1740930657774,-733.37,0.00026575,2]
[355127737,1740930657785,-500.0,0.00026575,2]
[355127738,1740930657795,-806.07,0.00026575,2]
[355127739,1740930657805,-2443.66,0.00026575,2]
[355127740,1740930657815,-500.0,0.00026575,2]
[355127741,1740930657825,-3279.81,0.00026575,2]
[355127742,1740930657834,-1526.61,0.00026575,2]
[355127743,1740930657844,-1347.2,0.00026575,2]
[355127744,1740930657854,-727.44,0.00026575,2]
[355127745,1740930657863,-500.0,0.00026575,2]
[355127746,1740930657873,-323.2666832,0.00026733,2]
[355127747,1740930657882,-8714.36336184,0.00026762,4]
[355127748,1740930657892,-2000.0,0.00026797,4]
[355127749,1740930657903,-7400.0,0.000268,9]
[355127750,1740930657912,-1013.15,0.00026848,2]
[355127751,1740930657922,-169.793464,0.00026849,2]
[355127752,1740930657932,-194.188231,0.00026849,2]
[355127753,1740930657941,-153.185899,0.00026849,2]
[355127754,1740930657951,-500.0,0.00026849,2]
[355127755,1740930657960,-500.0,0.00026849,2]
[355127756,1740930657970,-500.0,0.00026849,2]
[355127757,1740930657981,-500.0,0.00026849,2]
[355127758,1740930657990,-500.0,0.00026849,2]
[355127759,1740930658000,-1012.05,0.00026849,2]
[355127760,1740930658009,-849.78,0.00026849,2]
[355127761,1740930658019,-500.0,0.00026849,2]
[355127762,1740930658032,-310.279999,0.00026849,2]
[355127763,1740930658042,-500.0,0.00026849,2]
[355127764,1740930658052,-500.0,0.00026849,2]
[355127765,1740930658063,-1399.85,0.00026849,2]
[355127766,1740930658074,-2759.04,0.00026849,2]
[355127767,1740930658084,-908.68,0.00026849,2]
[355127768,1740930658094,-1649.39,0.00026849,2]
[355127769,1740930658104,-893.1,0.00026849,2]
[355127770,1740930658114,-1036.89,0.00026849,2]
[355127771,1740930658123,-355.6110217,0.00026849,2]
[355127772,1740930658137,-421.8889783,0.00026849,2]
[355127773,1740930658147,-1965.61,0.00026849,2]
[355127774,1740930658158,-500.0,0.00026849,2]
[355127775,1740930658167,-763.07,0.00026849,2]
[355127776,1740930658178,-1418.55,0.00026849,2]
[355127777,1740930658188,-231.2810217,0.00026849,2]
[355127778,1740930658201,-268.7189783,0.00026849,2]
[355127779,1740930658211,-1316.21,0.00026849,2]
[355127780,1740930658222,-500.0,0.00026849,2]
[355127781,1740930658231,-500.0,0.00026849,2]
[355127782,1740930658242,-1430.92,0.00026849,2]
[355127783,1740930658252,-1355.18,0.00026849,2]
[355127784,1740930658262,-500.0,0.00026849,2]
[355127785,1740930658275,-500.0,0.00026849,2]
[355127786,1740930658284,-500.0,0.00026849,2]
[355127787,1740930658295,-301.37,0.00026849,2]
[355127788,1740930658304,-155.06033671,0.00026849,2]
[355127789,1740930658316,-344.93966329,0.00026849,2]
[355127790,1740930658326,-42.75070062,0.00026849,2]
[355127791,1740930658338,-1189.87929938,0.00026849,2]
[355127792,1740930658348,-528.98,0.00026849,2]
[355127793,1740930658357,-500.0,0.00026849,2]
[355127794,1740930658367,-500.0,0.00026849,2]
[355127795,1740930658377,-823.0,0.00026849,2]
[355127796,1740930658386,-580.87,0.00026849,2]
[355127797,1740930658395,-831.23,0.00026849,2]
[355127798,1740930658405,-603.63,0.00026849,2]
[355127799,1740930658414,-500.0,0.00026849,2]
[355127800,1740930658424,-1509.41861518,0.00026849,2]
[355127801,1740930658587,-128.20138482,0.00026849,2]
[355127802,1740930658598,-1394.88,0.00026849,2]
[355127803,1740930658609,-4299.86,0.00026849,2]
[355127804,1740930658619,-2839.17,0.00026849,2]
[355127805,1740930658629,-500.0,0.00026849,2]
[355127806,1740930658638,-766.74,0.00026849,2]
[355127807,1740930658648,-749.36,0.00026849,2]
[355127808,1740930658658,-910.07,0.00026849,2]
[355127809,1740930658668,-500.0,0.00026849,2]
[355127810,1740930658678,-500.0,0.00026849,2]
[355127811,1740930658687,-500.0,0.00026849,2]
[355127812,1740930658696,-500.0,0.00026849,2]
[355127813,1740930658706,-1121.7,0.00026849,2]
[355127814,1740930658715,-516.14,0.00026849,2]
[355127815,1740930658725,-500.0,0.00026849,2]
[355127816,1740930658735,-1622.86,0.00026849,2]
[355127817,1740930658744,-1793.0,0.00026849,2]
[355127818,1740930658754,-1560.4,0.00026849,2]
[355127819,1740930658764,-500.0,0.00026849,2]
[355127820,1740930658775,-500.0,0.00026849,2]
[355127821,1740930658785,-618.43,0.00026849,2]
[355127822,1740930658795,-500.0,0.00026849,2]
[355127823,1740930658805,-500.0,0.00026849,2]
[355127824,1740930658815,-500.0,0.00026849,2]
[355127825,1740930658824,-760.98,0.00026849,2]
[355127826,1740930658834,-443.15,0.00026849,2]
[355127827,1740930658845,-889.47,0.00026849,2]
[355127828,1740930658855,-733.37,0.00026849,2]
[355127829,1740930658865,-500.0,0.00026849,2]
[355127830,1740930658874,-806.07,0.00026849,2]
[355127831,1740930658885,-2443.66,0.00026849,2]
[355127832,1740930658896,-500.0,0.00026849,2]
[355127833,1740930658905,-151.0,0.00026849,7]
[355127834,1740930658915,-3279.81,0.00026849,2]
[355127835,1740930658924,-1526.61,0.00026849,2]
[355127836,1740930658934,-1347.2,0.00026849,2]
[355127837,1740930658944,-727.44,0.00026849,2]
[355127838,1740930658953,-500.0,0.00026849,2]
[355127839,1740930658963,-9300.0,0.000269,9]
[355127840,1740930658974,-39072.5472547,0.00027,3]
[355127841,1740930658986,-7522.61402984,0.00027,3]
[355127842,1740930659069,-500.0,0.00024657,2]
[355127843,1740930659079,-500.0,0.00024657,2]
[355127844,1740930659089,-165.36,0.00024931,2]
[355127845,1740930659099,-431.99039991,0.00024931,2]
[355127846,1740930659108,-2232.72777514,0.00027,3]
[355127847,1740930659120,-10050.0,0.00027,3]
[355127848,1740930659133,-41122.11094032,0.00027,3]
[355127849,1740930659142,-3868.19559712,0.00027,60]
[355127850,1740930659152,-500.0,0.00027,120]
[355127851,1740930659162,-250.0,0.00027,2]
[355127852,1740930659171,-990.14118796,0.00027,2]
[355127853,1740930659181,-600.0,0.00027,2]
[355127854,1740930659191,-151.0,0.00027072,7]
[355127855,1740930659201,-169.793464,0.00027123,2]
[355127856,1740930659211,-194.188231,0.00027123,2]
[355127857,1740930659221,-500.0,0.00027123,2]
[355127858,1740930659231,-500.0,0.00027123,2]
[355127859,1740930659241,-500.0,0.00027123,2]
[355127860,1740930659251,-500.0,0.00027123,2]
[355127861,1740930659261,-1012.05,0.00027123,2]
[355127862,1740930659270,-849.78,0.00027123,2]
[355127863,1740930659284,-500.0,0.00027123,2]
[355127864,1740930659295,-500.0,0.00027123,2]
[355127865,1740930659305,-500.0,0.00027123,2]
[355127866,1740930659316,-1399.85,0.00027123,2]
[355127867,1740930659326,-2759.04,0.00027123,2]
[355127868,1740930659336,-1649.39,0.00027123,2]
[355127869,1740930659346,-1036.89,0.00027123,2]
[355127870,1740930659356,-777.5,0.00027123,2]
[355127871,1740930659365,-1965.61,0.00027123,2]
[355127872,1740930659375,-763.07,0.00027123,2]
[355127873,1740930659386,-500.0,0.00027123,2]
[355127874,1740930659395,-1418.55,0.00027123,2]
[355127875,1740930659405,-500.0,0.00027123,2]
[355127876,1740930659414,-1316.21,0.00027123,2]
[355127877,1740930659424,-500.0,0.00027123,2]
[355127878,1740930659434,-500.0,0.00027123,2]
[355127879,1740930659443,-1430.92,0.00027123,2]
[355127880,1740930659453,-1355.18,0.00027123,2]
[355127881,1740930659462,-500.0,0.00027123,2]
[355127882,1740930659473,-500.0,0.00027123,2]
[355127883,1740930659483,-500.0,0.00027123,2]
[355127884,1740930659496,-500.0,0.00027123,2]
[355127885,1740930659506,-1232.63,0.00027123,2]
[355127886,1740930659516,-528.98,0.00027123,2]
[355127887,1740930659528,-500.0,0.00027123,2]
[355127888,1740930659539,-500.0,0.00027123,2]
[355127889,1740930659549,-823.0,0.00027123,2]
[355127890,1740930659559,-831.23,0.00027123,2]
[355127891,1740930659569,-580.87,0.00027123,2]
[355127892,1740930659579,-603.63,0.00027123,2]
[355127893,1740930659589,-500.0,0.00027123,2]
[355127894,1740930659598,-1637.62,0.00027123,2]
[355127895,1740930659608,-1394.88,0.00027123,2]
[355127896,1740930659618,-759.53928361,0.00027123,2]
[355127897,1740930659630,-638.37086528,0.00027123,2]
[355127898,1740930659642,-789.52140069,0.00027123,2]
[355127899,1740930659654,-2112.42845042,0.00027123,2]
[355127900,1740930659665,-1386.80028835,0.00027123,2]
[355127901,1740930659676,-910.14212566,0.00027123,2]
[355127902,1740930659687,-440.03000959,0.00027123,2]
[355127903,1740930659699,-102.1975764,0.00027123,2]
[355127904,1740930659708,-160.38242359,0.00027123,2]
[355127905,1740930659980,-339.61757641,0.00027123,2]
[355127906,1740930659990,-766.74,0.00027123,2]
[355127907,1740930660000,-749.36,0.00027123,2]
[355127908,1740930660010,-910.07,0.00027123,2]
[355127909,1740930660021,-500.0,0.00027123,2]
[355127910,1740930660034,-500.0,0.00027123,2]
[355127911,1740930660044,-500.0,0.00027123,2]